[Event "Titled Tuesday Blitz November 15 Early 2022"]
[White "Przybylski, Wojciech"]
[Black "Goltsev, Dmitry"]
[WhiteFideId "1117599"]
[BlackFideId "24176710"]
[WhiteElo "2221"]
[BlackElo "2289"]
[Result "1-0"]
[Round "08"]
[TimeControl "180+1"]
[Date "2022.11.16"]
[WhiteClock "0:00:12"]
[BlackClock "0:00:34"]

1. e4 {[%clk 0:02:59]}  e6 {[%clk 0:03:00]} 2. d4 {[%clk 0:02:57]}  d5 {[%clk 0:03:01]} 3. Nc3 {[%clk 0:02:57]}  Nf6 {[%clk 0:03:01]} 4. Bg5 {[%clk 0:02:52]}  dxe4 {[%clk 0:03:00]} 5. Nxe4 {[%clk 0:02:52]}  Be7 {[%clk 0:03:01]} 6. Bxf6 {[%clk 0:02:53]}  gxf6 {[%clk 0:03:01]} 7. Nc3 {[%clk 0:02:53]}  a6 {[%clk 0:03:01]} 8. g3 {[%clk 0:02:51]}  c5 {[%clk 0:03:00]} 9. Nge2 {[%clk 0:02:48]}  Nc6 {[%clk 0:03:00]} 10. d5 {[%clk 0:02:42]}  exd5 {[%clk 0:02:46]} 11. Nxd5 {[%clk 0:02:37]}  Nd4 {[%clk 0:02:44]} 12. Nxd4 {[%clk 0:02:30]}  Qxd5 {[%clk 0:02:43]} 13. Nf3 {[%clk 0:02:29]}  Qe4+ {[%clk 0:02:40]} 14. Qe2 {[%clk 0:02:28]}  Bf5 {[%clk 0:02:36]} 15. Qxe4 {[%clk 0:02:20]}  Bxe4 {[%clk 0:02:37]} 16. Bg2 {[%clk 0:02:18]}  Bxc2 {[%clk 0:02:37]} 17. O-O {[%clk 0:02:17]}  O-O-O {[%clk 0:02:31]} 18. Rac1 {[%clk 0:02:14]}  Bd3 {[%clk 0:02:30]} 19. Rfe1 {[%clk 0:02:13]}  Rhe8 {[%clk 0:02:29]} 20. Nd2 {[%clk 0:02:06]}  b6 {[%clk 0:02:25]} 21. Nc4 {[%clk 0:01:58]}  Kc7 {[%clk 0:02:22]} 22. Ne3 {[%clk 0:01:57]}  Bf8 {[%clk 0:02:11]} 23. Nd5+ {[%clk 0:01:48]}  Kb8 {[%clk 0:02:11]} 24. Nxb6 {[%clk 0:01:44]}  Rxe1+ {[%clk 0:02:10]} 25. Rxe1 {[%clk 0:01:43]}  c4 {[%clk 0:02:10]} 26. Nd5 {[%clk 0:01:36]}  Bc5 {[%clk 0:02:07]} 27. b3 {[%clk 0:01:18]}  c3 {[%clk 0:02:03]} 28. Nxc3 {[%clk 0:00:40]}  Bb4 {[%clk 0:02:02]} 29. Rd1 {[%clk 0:00:40]}  Rd6 {[%clk 0:01:27]} 30. Ne4 {[%clk 0:00:32]}  Rd4 {[%clk 0:01:17]} 31. Nxf6 {[%clk 0:00:21]}  Bc3 {[%clk 0:01:17]} 32. Ne4 {[%clk 0:00:18]}  Bb2 {[%clk 0:01:10]} 33. Nc5 {[%clk 0:00:16]}  Bb5 {[%clk 0:01:04]} 34. Rxd4 {[%clk 0:00:14]}  Bxd4 {[%clk 0:01:05]} 35. Ne4 {[%clk 0:00:14]}  f6 {[%clk 0:01:00]} 36. Nd6 {[%clk 0:00:14]}  Be2 {[%clk 0:00:56]} 37. Bf1 {[%clk 0:00:13]}  Bf3 {[%clk 0:00:51]} 38. Bxa6 {[%clk 0:00:12]}  Be5 {[%clk 0:00:52]} 39. Nf5 {[%clk 0:00:12]}  Be4 {[%clk 0:00:51]} 40. Ne3 {[%clk 0:00:12]}  Bb1 {[%clk 0:00:51]} 41. a4 {[%clk 0:00:12]}  Bc3 {[%clk 0:00:50]} 42. Kf1 {[%clk 0:00:12]}  Ka7 {[%clk 0:00:48]} 43. Bc4 {[%clk 0:00:11]}  h5 {[%clk 0:00:47]} 44. Ke2 {[%clk 0:00:12]}  Be4 {[%clk 0:00:47]} 45. f3 {[%clk 0:00:11]}  Bg6 {[%clk 0:00:46]} 46. Nd5 {[%clk 0:00:10]}  Bd4 {[%clk 0:00:46]} 47. b4 {[%clk 0:00:09]}  Bc2 {[%clk 0:00:43]} 48. a5 {[%clk 0:00:09]}  Bg1 {[%clk 0:00:41]} 49. h3 {[%clk 0:00:09]}  Bh2 {[%clk 0:00:41]} 50. g4 {[%clk 0:00:09]}  h4 {[%clk 0:00:41]} 51. f4 {[%clk 0:00:09]}  Be4 {[%clk 0:00:40]} 52. Ke3 {[%clk 0:00:09]}  Bg2 {[%clk 0:00:40]} 53. Nxf6 {[%clk 0:00:06]}  Bxh3 {[%clk 0:00:39]} 54. Kf3 {[%clk 0:00:06]}  Bg3 {[%clk 0:00:37]} 55. Ne4 {[%clk 0:00:06]}  Be1 {[%clk 0:00:37]} 56. Ng5 {[%clk 0:00:06]}  Bxg4+ {[%clk 0:00:34]} 57. Kxg4 {[%clk 0:00:06]}  Bxb4 {[%clk 0:00:35]} 58. a6 {[%clk 0:00:07]}  Bd2 {[%clk 0:00:34]} 59. Nf3 {[%clk 0:00:07]}  Be3 {[%clk 0:00:34]} 60. Nxh4 {[%clk 0:00:07]}  Bc5 {[%clk 0:00:32]} 61. Nf5 {[%clk 0:00:07]}  Kb6 {[%clk 0:00:33]} 62. Kf3 {[%clk 0:00:08]}  Ka5 {[%clk 0:00:33]} 63. Ke4 {[%clk 0:00:08]}  Kb4 {[%clk 0:00:34]} 64. Bd3 {[%clk 0:00:07]}  Kc3 {[%clk 0:00:34]} 65. Ng3 {[%clk 0:00:07]}  Bf2 {[%clk 0:00:34]} 66. Ne2+ {[%clk 0:00:07]}  Kb4 {[%clk 0:00:35]} 67. f5 {[%clk 0:00:08]}  Kc5 {[%clk 0:00:35]} 68. Nf4 {[%clk 0:00:08]}  Kd6 {[%clk 0:00:35]} 69. Nd5 {[%clk 0:00:08]}  Bc5 {[%clk 0:00:35]} 70. f6 {[%clk 0:00:09]}  Ke6 {[%clk 0:00:36]} 71. Bc4 {[%clk 0:00:09]}  Ba7 {[%clk 0:00:35]} 72. Kf4 {[%clk 0:00:09]}  Kf7 {[%clk 0:00:31]} 73. Kf5 {[%clk 0:00:09]}  Kf8 {[%clk 0:00:31]} 74. Nb4 {[%clk 0:00:10]}  Bc5 {[%clk 0:00:30]} 75. Nc6 {[%clk 0:00:10]}  Ke8 {[%clk 0:00:30]} 76. a7 {[%clk 0:00:10]}  Bxa7 {[%clk 0:00:30]} 77. Nxa7 {[%clk 0:00:10]}  Kf8 {[%clk 0:00:31]} 78. Nb5 {[%clk 0:00:11]}  Ke8 {[%clk 0:00:31]} 79. Ke6 {[%clk 0:00:11]}  Kf8 {[%clk 0:00:32]} 80. f7 {[%clk 0:00:11]}  Kg7 {[%clk 0:00:32]} 81. Ke7 {[%clk 0:00:11]}  Kg6 {[%clk 0:00:33]} 82. Be2 {[%clk 0:00:12]}  Kg7 {[%clk 0:00:32]} 83. f8=Q+ {[%clk 0:00:11]}  Kg6 {[%clk 0:00:33]} 84. Qf6+ {[%clk 0:00:11]}  Kh7 {[%clk 0:00:33]} 85. Qg5 {[%clk 0:00:11]}  Kh8 {[%clk 0:00:33]} 86. Bc4 {[%clk 0:00:11]}  Kh7 {[%clk 0:00:34]} 87. Bd5 {[%clk 0:00:12]}  Kh8 {[%clk 0:00:34]} 88. Qh6# {[%clk 0:00:12]} 1-0


[Site "https://www.chess.com"]

[Event "Titled Tuesday Blitz November 15 Early 2022"]
[White "Rodriguez Fontecha, Marcos"]
[Black "Korchmar, Vasiliy"]
[WhiteFideId "2256576"]
[BlackFideId "24131750"]
[WhiteElo "2263"]
[BlackElo "2370"]
[Result "0-1"]
[Round "08"]
[TimeControl "180+1"]
[Date "2022.11.16"]
[WhiteClock "0:00:08"]
[BlackClock "0:02:21"]

1. d4 {[%clk 0:02:57]}  d5 {[%clk 0:02:59]} 2. Bf4 {[%clk 0:02:56]}  Nf6 {[%clk 0:02:59]} 3. e3 {[%clk 0:02:56]}  c5 {[%clk 0:02:59]} 4. c3 {[%clk 0:02:57]}  Nc6 {[%clk 0:02:59]} 5. Nd2 {[%clk 0:02:57]}  Qb6 {[%clk 0:02:59]} 6. Qb3 {[%clk 0:02:57]}  c4 {[%clk 0:02:59]} 7. Qc2 {[%clk 0:02:57]}  Bg4 {[%clk 0:02:58]} 8. Ngf3 {[%clk 0:02:56]}  e6 {[%clk 0:02:58]} 9. Be2 {[%clk 0:02:56]}  Be7 {[%clk 0:02:59]} 10. O-O {[%clk 0:02:55]}  O-O {[%clk 0:02:59]} 11. h3 {[%clk 0:02:55]}  Bf5 {[%clk 0:02:59]} 12. Qc1 {[%clk 0:02:56]}  h6 {[%clk 0:02:58]} 13. Bd1 {[%clk 0:02:56]}  Rfc8 {[%clk 0:02:58]} 14. Bc2 {[%clk 0:02:56]}  Bxc2 {[%clk 0:02:57]} 15. Qxc2 {[%clk 0:02:57]}  Qd8 {[%clk 0:02:58]} 16. e4 {[%clk 0:02:56]}  b5 {[%clk 0:02:58]} 17. Rfe1 {[%clk 0:02:53]}  b4 {[%clk 0:02:57]} 18. exd5 {[%clk 0:02:49]}  Nxd5 {[%clk 0:02:58]} 19. Bg3 {[%clk 0:02:44]}  bxc3 {[%clk 0:02:57]} 20. bxc3 {[%clk 0:02:43]}  Bf8 {[%clk 0:02:53]} 21. Rab1 {[%clk 0:02:33]}  Nce7 {[%clk 0:02:49]} 22. Ne5 {[%clk 0:02:31]}  Nf5 {[%clk 0:02:47]} 23. Bh2 {[%clk 0:02:26]}  Qa5 {[%clk 0:02:47]} 24. Ndxc4 {[%clk 0:02:15]}  Qxc3 {[%clk 0:02:46]} 25. Qa4 {[%clk 0:01:29]}  Nxd4 {[%clk 0:02:28]} 26. Rbd1 {[%clk 0:00:55]}  f6 {[%clk 0:02:19]} 27. Re3 {[%clk 0:00:45]}  Qc2 {[%clk 0:02:19]} 28. Qxc2 {[%clk 0:00:39]}  Nxc2 {[%clk 0:02:20]} 29. Re2 {[%clk 0:00:34]}  Nc3 {[%clk 0:02:15]} 30. Rxc2 {[%clk 0:00:31]}  Nxd1 {[%clk 0:02:16]} 31. Nd3 {[%clk 0:00:21]}  e5 {[%clk 0:02:16]} 32. f3 {[%clk 0:00:16]}  Rc6 {[%clk 0:02:16]} 33. Kf1 {[%clk 0:00:11]}  Rac8 {[%clk 0:02:17]} 34. Ke1 {[%clk 0:00:11]}  Rxc4 {[%clk 0:02:17]} 35. Rxc4 {[%clk 0:00:12]}  Rxc4 {[%clk 0:02:18]} 36. Kxd1 {[%clk 0:00:12]}  Ra4 {[%clk 0:02:18]} 37. Nc1 {[%clk 0:00:12]}  Ba3 {[%clk 0:02:18]} 38. Nb3 {[%clk 0:00:11]}  Bb2 {[%clk 0:02:19]} 39. Kc2 {[%clk 0:00:11]}  Bd4 {[%clk 0:02:19]} 40. Nc1 {[%clk 0:00:10]}  Be3 {[%clk 0:02:19]} 41. Kb3 {[%clk 0:00:08]}  Ra6 {[%clk 0:02:19]} 42. Nd3 {[%clk 0:00:08]}  Rd6 {[%clk 0:02:20]} 43. Nb4 {[%clk 0:00:08]}  Rd2 {[%clk 0:02:20]} 44. Bg3 {[%clk 0:00:07]}  Rxg2 {[%clk 0:02:20]} 45. Be1 {[%clk 0:00:08]}  Bd2 {[%clk 0:02:21]} 0-1


[Site "https://www.chess.com"]

[Event "Titled Tuesday Blitz November 15 Early 2022"]
[White "Rohith Krishna S"]
[Black "Ozen, Bahadir"]
[WhiteFideId "46617051"]
[BlackFideId "6337058"]
[WhiteElo "2270"]
[BlackElo "2503"]
[Result "1/2-1/2"]
[Round "08"]
[TimeControl "180+1"]
[Date "2022.11.15"]
[WhiteClock "0:01:16"]
[BlackClock "0:00:40"]

1. e4 {[%clk 0:02:54]}  d6 {[%clk 0:02:59]} 2. c4 {[%clk 0:02:51]}  Nf6 {[%clk 0:02:55]} 3. Nc3 {[%clk 0:02:52]}  e5 {[%clk 0:02:53]} 4. d3 {[%clk 0:02:49]}  c6 {[%clk 0:02:51]} 5. g3 {[%clk 0:02:49]}  Be7 {[%clk 0:02:50]} 6. Bg2 {[%clk 0:02:50]}  O-O {[%clk 0:02:51]} 7. Nge2 {[%clk 0:02:50]}  a6 {[%clk 0:02:50]} 8. O-O {[%clk 0:02:51]}  b5 {[%clk 0:02:50]} 9. b3 {[%clk 0:02:49]}  Nbd7 {[%clk 0:02:50]} 10. h3 {[%clk 0:02:46]}  Bb7 {[%clk 0:02:49]} 11. Kh2 {[%clk 0:02:46]}  b4 {[%clk 0:02:32]} 12. Na4 {[%clk 0:02:46]}  d5 {[%clk 0:02:32]} 13. a3 {[%clk 0:02:46]}  a5 {[%clk 0:02:30]} 14. g4 {[%clk 0:02:39]}  dxe4 {[%clk 0:02:26]} 15. dxe4 {[%clk 0:02:39]}  Nc5 {[%clk 0:02:23]} 16. axb4 {[%clk 0:02:38]}  Qxd1 {[%clk 0:02:21]} 17. Rxd1 {[%clk 0:02:37]}  Nxb3 {[%clk 0:02:22]} 18. Rb1 {[%clk 0:02:22]}  Nxc1 {[%clk 0:02:22]} 19. Nxc1 {[%clk 0:02:23]}  axb4 {[%clk 0:02:22]} 20. Nb6 {[%clk 0:02:24]}  Rad8 {[%clk 0:02:11]} 21. Nd3 {[%clk 0:02:21]}  c5 {[%clk 0:02:09]} 22. Nd5 {[%clk 0:02:18]}  Bxd5 {[%clk 0:01:52]} 23. exd5 {[%clk 0:02:13]}  Bd6 {[%clk 0:01:48]} 24. Kg1 {[%clk 0:02:10]}  e4 {[%clk 0:01:47]} 25. Ne1 {[%clk 0:02:10]}  Rfe8 {[%clk 0:01:39]} 26. Nc2 {[%clk 0:02:10]}  Bf4 {[%clk 0:01:28]} 27. Na1 {[%clk 0:02:06]}  e3 {[%clk 0:01:28]} 28. fxe3 {[%clk 0:02:04]}  Bxe3+ {[%clk 0:01:28]} 29. Kh1 {[%clk 0:02:03]}  h5 {[%clk 0:01:28]} 30. Bf3 {[%clk 0:01:58]}  hxg4 {[%clk 0:01:28]} 31. hxg4 {[%clk 0:01:59]}  g6 {[%clk 0:01:28]} 32. Nb3 {[%clk 0:01:57]}  Kg7 {[%clk 0:01:29]} 33. Kg2 {[%clk 0:01:58]}  Nd7 {[%clk 0:01:19]} 34. Re1 {[%clk 0:01:55]}  Bf4 {[%clk 0:01:17]} 35. Ra1 {[%clk 0:01:48]}  Rxe1 {[%clk 0:01:10]} 36. Rxe1 {[%clk 0:01:48]}  Bd6 {[%clk 0:01:11]} 37. Ra1 {[%clk 0:01:45]}  Nb6 {[%clk 0:01:10]} 38. Be2 {[%clk 0:01:36]}  Ra8 {[%clk 0:01:10]} 39. Rxa8 {[%clk 0:01:34]}  Nxa8 {[%clk 0:01:11]} 40. Kf3 {[%clk 0:01:31]}  Nb6 {[%clk 0:01:09]} 41. Ke4 {[%clk 0:01:31]}  Na4 {[%clk 0:01:09]} 42. Bf1 {[%clk 0:01:28]}  Nc3+ {[%clk 0:01:09]} 43. Kd3 {[%clk 0:01:28]}  Kf6 {[%clk 0:01:08]} 44. Na5 {[%clk 0:01:27]}  Ke7 {[%clk 0:00:52]} 45. g5 {[%clk 0:01:25]}  Kd7 {[%clk 0:00:47]} 46. Bh3+ {[%clk 0:01:25]}  Kc7 {[%clk 0:00:48]} 47. Nb3 {[%clk 0:01:19]}  Kb6 {[%clk 0:00:48]} 48. Bd7 {[%clk 0:01:18]}  Be7 {[%clk 0:00:41]} 49. Be8 {[%clk 0:01:18]}  Bxg5 {[%clk 0:00:40]} 50. Bxf7 {[%clk 0:01:18]}  Be7 {[%clk 0:00:41]} 51. Bxg6 {[%clk 0:01:18]}  Bd6 {[%clk 0:00:40]} 52. Kc2 {[%clk 0:01:16]}  Kc7 {[%clk 0:00:40]} 53. Kd3 {[%clk 0:01:16]}  Kb6 {[%clk 0:00:40]} 1/2-1/2


[Site "https://www.chess.com"]

[Event "Titled Tuesday Blitz November 15 Early 2022"]
[White "Rosh Jain"]
[Black "Mrudul Dehankar"]
[WhiteFideId "25789465"]
[BlackFideId "25096990"]
[WhiteElo "2233"]
[BlackElo "2068"]
[Result "1-0"]
[Round "08"]
[TimeControl "180+1"]
[Date "2022.11.16"]
[WhiteClock "0:00:19"]
[BlackClock "0:00:02"]

1. e4 {[%clk 0:02:59]}  c5 {[%clk 0:02:53]} 2. Nf3 {[%clk 0:02:59]}  d6 {[%clk 0:02:54]} 3. d4 {[%clk 0:02:59]}  cxd4 {[%clk 0:02:55]} 4. Nxd4 {[%clk 0:03:00]}  Nf6 {[%clk 0:02:55]} 5. Nc3 {[%clk 0:03:00]}  a6 {[%clk 0:02:55]} 6. Bc4 {[%clk 0:02:59]}  e6 {[%clk 0:02:54]} 7. Bb3 {[%clk 0:02:58]}  Qc7 {[%clk 0:02:55]} 8. Bg5 {[%clk 0:02:55]}  Be7 {[%clk 0:02:53]} 9. Qd2 {[%clk 0:02:48]}  Nc6 {[%clk 0:02:52]} 10. O-O-O {[%clk 0:02:47]}  Na5 {[%clk 0:02:48]} 11. f4 {[%clk 0:02:45]}  h6 {[%clk 0:02:24]} 12. Bxf6 {[%clk 0:02:44]}  Bxf6 {[%clk 0:02:24]} 13. Kb1 {[%clk 0:02:43]}  Nc4 {[%clk 0:02:01]} 14. Bxc4 {[%clk 0:02:41]}  Qxc4 {[%clk 0:02:01]} 15. e5 {[%clk 0:02:29]}  dxe5 {[%clk 0:01:41]} 16. fxe5 {[%clk 0:02:20]}  Bg5 {[%clk 0:01:06]} 17. Qf2 {[%clk 0:01:51]}  Bd7 {[%clk 0:00:57]} 18. h4 {[%clk 0:01:42]}  Be7 {[%clk 0:00:56]} 19. Ne4 {[%clk 0:01:11]}  Rf8 {[%clk 0:00:19]} 20. Qg3 {[%clk 0:00:41]}  O-O-O {[%clk 0:00:13]} 21. Qxg7 {[%clk 0:00:39]}  Be8 {[%clk 0:00:06]} 22. c3 {[%clk 0:00:27]}  Bc6 {[%clk 0:00:04]} 23. Nf6 {[%clk 0:00:23]}  Bxf6 {[%clk 0:00:03]} 24. Qxf6 {[%clk 0:00:24]}  Be4+ {[%clk 0:00:03]} 25. Ka1 {[%clk 0:00:23]}  Bd5 {[%clk 0:00:03]} 26. Nb3 {[%clk 0:00:21]}  Bxg2 {[%clk 0:00:02]} 27. Rhg1 {[%clk 0:00:19]} 1-0


[Site "https://www.chess.com"]

[Event "Titled Tuesday Blitz November 15 Early 2022"]
[White "Safin, Robert"]
[Black "Kopacz, Grzegorz"]
[WhiteFideId "34189120"]
[BlackFideId "1109880"]
[WhiteElo "2253"]
[BlackElo "2037"]
[Result "1-0"]
[Round "08"]
[TimeControl "180+1"]
[Date "2022.11.16"]
[WhiteClock "0:00:04"]
[BlackClock "0:01:05"]

1. e4 {[%clk 0:02:46]}  c5 {[%clk 0:02:58]} 2. c3 {[%clk 0:02:46]}  g6 {[%clk 0:02:57]} 3. d4 {[%clk 0:02:45]}  cxd4 {[%clk 0:02:57]} 4. cxd4 {[%clk 0:02:46]}  d5 {[%clk 0:02:57]} 5. exd5 {[%clk 0:02:47]}  Nf6 {[%clk 0:02:56]} 6. Nc3 {[%clk 0:02:48]}  Nxd5 {[%clk 0:02:55]} 7. Qb3 {[%clk 0:02:39]}  Nxc3 {[%clk 0:02:52]} 8. Bc4 {[%clk 0:02:38]}  e6 {[%clk 0:02:30]} 9. bxc3 {[%clk 0:02:38]}  Bg7 {[%clk 0:02:29]} 10. Ba3 {[%clk 0:02:36]}  Nc6 {[%clk 0:02:29]} 11. Nf3 {[%clk 0:02:34]}  Ne7 {[%clk 0:02:27]} 12. O-O {[%clk 0:01:25]}  O-O {[%clk 0:02:25]} 13. Ne5 {[%clk 0:01:23]}  Re8 {[%clk 0:02:20]} 14. Rfe1 {[%clk 0:01:22]}  Nc6 {[%clk 0:02:20]} 15. Bb5 {[%clk 0:00:40]}  Qc7 {[%clk 0:01:58]} 16. d5 {[%clk 0:00:20]}  exd5 {[%clk 0:01:32]} 17. Nxc6 {[%clk 0:00:19]}  Be6 {[%clk 0:01:17]} 18. Nd4 {[%clk 0:00:17]}  Rec8 {[%clk 0:01:15]} 19. Nxe6 {[%clk 0:00:14]}  fxe6 {[%clk 0:01:16]} 20. Rac1 {[%clk 0:00:13]}  a6 {[%clk 0:01:15]} 21. Bf1 {[%clk 0:00:10]}  Qf4 {[%clk 0:01:12]} 22. Rc2 {[%clk 0:00:07]}  Qf5 {[%clk 0:01:10]} 23. g3 {[%clk 0:00:06]}  Rc7 {[%clk 0:01:06]} 24. Bd6 {[%clk 0:00:05]}  Rf7 {[%clk 0:01:06]} 25. Bg2 {[%clk 0:00:04]}  Qxf2+ {[%clk 0:01:05]} 26. Rxf2 {[%clk 0:00:04]} 1-0


[Site "https://www.chess.com"]

[Event "Titled Tuesday Blitz November 15 Early 2022"]
[White "Salman, Pavel"]
[Black "Muminova, Nafisa"]
[WhiteFideId "24153753"]
[BlackFideId "14201526"]
[WhiteElo "2187"]
[BlackElo "2258"]
[Result "1-0"]
[Round "08"]
[TimeControl "180+1"]
[Date "2022.11.16"]
[WhiteClock "0:00:11"]
[BlackClock "0:00:01"]

1. d4 {[%clk 0:02:59]}  Nf6 {[%clk 0:02:58]} 2. Nc3 {[%clk 0:02:58]}  d5 {[%clk 0:02:54]} 3. Bf4 {[%clk 0:02:58]}  Bf5 {[%clk 0:02:52]} 4. Nb5 {[%clk 0:02:57]}  Na6 {[%clk 0:02:50]} 5. e3 {[%clk 0:02:58]}  e6 {[%clk 0:02:45]} 6. f3 {[%clk 0:02:57]}  c6 {[%clk 0:02:20]} 7. Nc3 {[%clk 0:02:55]}  Bb4 {[%clk 0:02:19]} 8. g4 {[%clk 0:02:54]}  Bg6 {[%clk 0:02:18]} 9. h4 {[%clk 0:02:53]}  h5 {[%clk 0:02:17]} 10. g5 {[%clk 0:02:53]}  Nd7 {[%clk 0:02:17]} 11. Bd3 {[%clk 0:02:53]}  Bxd3 {[%clk 0:02:12]} 12. Qxd3 {[%clk 0:02:54]}  c5 {[%clk 0:02:06]} 13. a3 {[%clk 0:02:48]}  cxd4 {[%clk 0:01:49]} 14. exd4 {[%clk 0:02:38]}  Qa5 {[%clk 0:01:29]} 15. Ne2 {[%clk 0:02:36]}  Rc8 {[%clk 0:01:24]} 16. Kf2 {[%clk 0:02:27]}  Be7 {[%clk 0:01:23]} 17. Rae1 {[%clk 0:02:10]}  Qb6 {[%clk 0:01:19]} 18. Nb5 {[%clk 0:01:43]}  Nab8 {[%clk 0:01:01]} 19. g6 {[%clk 0:01:30]}  f6 {[%clk 0:01:00]} 20. Nec3 {[%clk 0:01:23]}  Kf8 {[%clk 0:00:23]} 21. Rxe6 {[%clk 0:00:53]}  Qxe6 {[%clk 0:00:21]} 22. Re1 {[%clk 0:00:54]}  Qh3 {[%clk 0:00:13]} 23. Nxd5 {[%clk 0:00:45]}  Nc6 {[%clk 0:00:10]} 24. Qe3 {[%clk 0:00:20]}  Re8 {[%clk 0:00:09]} 25. Nd6 {[%clk 0:00:17]}  Qxh4+ {[%clk 0:00:06]} 26. Kg1 {[%clk 0:00:10]}  Qxe1+ {[%clk 0:00:03]} 27. Qxe1 {[%clk 0:00:10]}  Bxd6 {[%clk 0:00:03]} 28. Bxd6+ {[%clk 0:00:11]}  Kg8 {[%clk 0:00:01]} 29. Qxe8+ {[%clk 0:00:11]} 1-0


[Site "https://www.chess.com"]

[Event "Titled Tuesday Blitz November 15 Early 2022"]
[White "Santos Ruiz, Miguel"]
[Black "Itgelt, Khuyagtsogt"]
[WhiteFideId "22291482"]
[BlackFideId "4902912"]
[WhiteElo "2503"]
[BlackElo "2129"]
[Result "1/2-1/2"]
[Round "08"]
[TimeControl "180+1"]
[Date "2022.11.15"]
[WhiteClock "0:00:38"]
[BlackClock "0:00:30"]

1. b3 {[%clk 0:03:00]}  Nf6 {[%clk 0:02:59]} 2. Bb2 {[%clk 0:03:01]}  e6 {[%clk 0:02:59]} 3. c4 {[%clk 0:03:00]}  d5 {[%clk 0:02:59]} 4. e3 {[%clk 0:03:01]}  Be7 {[%clk 0:02:58]} 5. Nf3 {[%clk 0:03:01]}  b6 {[%clk 0:02:58]} 6. cxd5 {[%clk 0:02:51]}  exd5 {[%clk 0:02:58]} 7. Nc3 {[%clk 0:02:49]}  O-O {[%clk 0:02:56]} 8. d4 {[%clk 0:02:48]}  Re8 {[%clk 0:02:54]} 9. Bd3 {[%clk 0:02:48]}  a6 {[%clk 0:02:54]} 10. O-O {[%clk 0:02:44]}  Bd6 {[%clk 0:02:54]} 11. Rc1 {[%clk 0:02:42]}  Nbd7 {[%clk 0:02:52]} 12. Qc2 {[%clk 0:02:28]}  h6 {[%clk 0:02:50]} 13. e4 {[%clk 0:02:26]}  dxe4 {[%clk 0:02:27]} 14. Nxe4 {[%clk 0:02:27]}  Nxe4 {[%clk 0:02:26]} 15. Bxe4 {[%clk 0:02:27]}  Rb8 {[%clk 0:02:27]} 16. Bc6 {[%clk 0:02:20]}  Bb7 {[%clk 0:02:22]} 17. d5 {[%clk 0:02:15]}  Bxc6 {[%clk 0:02:08]} 18. dxc6 {[%clk 0:02:16]}  Ne5 {[%clk 0:01:45]} 19. Nxe5 {[%clk 0:02:08]}  Bxe5 {[%clk 0:01:45]} 20. Rcd1 {[%clk 0:02:00]}  Qf6 {[%clk 0:01:39]} 21. Bxe5 {[%clk 0:01:23]}  Rxe5 {[%clk 0:01:40]} 22. b4 {[%clk 0:01:20]}  Re6 {[%clk 0:01:38]} 23. Rc1 {[%clk 0:01:17]}  Rd8 {[%clk 0:01:33]} 24. a4 {[%clk 0:01:16]}  b5 {[%clk 0:01:29]} 25. axb5 {[%clk 0:01:13]}  axb5 {[%clk 0:01:30]} 26. Qc5 {[%clk 0:01:14]}  Rdd6 {[%clk 0:01:11]} 27. Qxb5 {[%clk 0:01:11]}  Rxc6 {[%clk 0:01:11]} 28. Qb8+ {[%clk 0:01:08]}  Kh7 {[%clk 0:01:10]} 29. b5 {[%clk 0:01:08]}  Rb6 {[%clk 0:00:58]} 30. Qxc7 {[%clk 0:01:07]}  Rxb5 {[%clk 0:00:58]} 31. Qa7 {[%clk 0:00:59]}  Rbe5 {[%clk 0:00:39]} 32. Qb7 {[%clk 0:00:51]}  Re7 {[%clk 0:00:38]} 33. Qb1+ {[%clk 0:00:50]}  Qg6 {[%clk 0:00:39]} 34. Qxg6+ {[%clk 0:00:43]}  Kxg6 {[%clk 0:00:40]} 35. g3 {[%clk 0:00:44]}  Re2 {[%clk 0:00:37]} 36. Rc3 {[%clk 0:00:40]}  h5 {[%clk 0:00:35]} 37. h4 {[%clk 0:00:40]}  f6 {[%clk 0:00:35]} 38. Kg2 {[%clk 0:00:37]}  Re1 {[%clk 0:00:35]} 39. Rxe1 {[%clk 0:00:37]}  Rxe1 {[%clk 0:00:35]} 40. Rc7 {[%clk 0:00:37]}  Re5 {[%clk 0:00:35]} 41. Kf3 {[%clk 0:00:37]}  Ra5 {[%clk 0:00:36]} 42. Rc4 {[%clk 0:00:37]}  Rb5 {[%clk 0:00:35]} 43. Ra4 {[%clk 0:00:36]}  Rc5 {[%clk 0:00:36]} 44. Re4 {[%clk 0:00:36]}  Ra5 {[%clk 0:00:36]} 45. Kg2 {[%clk 0:00:36]}  Ra3 {[%clk 0:00:36]} 46. Rf4 {[%clk 0:00:36]}  Ra5 {[%clk 0:00:36]} 47. Rf3 {[%clk 0:00:37]}  Re5 {[%clk 0:00:37]} 48. Ra3 {[%clk 0:00:37]}  Rc5 {[%clk 0:00:37]} 49. Ra7 {[%clk 0:00:37]}  Rb5 {[%clk 0:00:38]} 50. Rc7 {[%clk 0:00:37]}  Rb3 {[%clk 0:00:38]} 51. Rc5 {[%clk 0:00:35]}  Rb4 {[%clk 0:00:38]} 52. Rc3 {[%clk 0:00:35]}  Ra4 {[%clk 0:00:38]} 53. Re3 {[%clk 0:00:36]}  Ra5 {[%clk 0:00:39]} 54. Kh3 {[%clk 0:00:36]}  Rb5 {[%clk 0:00:38]} 55. f3 {[%clk 0:00:37]}  Rb4 {[%clk 0:00:38]} 56. g4 {[%clk 0:00:37]}  hxg4+ {[%clk 0:00:39]} 57. fxg4 {[%clk 0:00:38]}  Ra4 {[%clk 0:00:38]} 58. Kg3 {[%clk 0:00:38]}  Kf7 {[%clk 0:00:38]} 59. Rb3 {[%clk 0:00:36]}  Ra7 {[%clk 0:00:37]} 60. Rb4 {[%clk 0:00:35]}  Rc7 {[%clk 0:00:37]} 61. Kf4 {[%clk 0:00:35]}  Ra7 {[%clk 0:00:33]} 62. h5 {[%clk 0:00:34]}  Rc7 {[%clk 0:00:33]} 63. Rb5 {[%clk 0:00:34]}  Ra7 {[%clk 0:00:27]} 64. Kf5 {[%clk 0:00:35]}  Rc7 {[%clk 0:00:27]} 65. Rb6 {[%clk 0:00:35]}  Ra7 {[%clk 0:00:26]} 66. Rc6 {[%clk 0:00:34]}  Ra5+ {[%clk 0:00:27]} 67. Kf4 {[%clk 0:00:35]}  Ra4+ {[%clk 0:00:27]} 68. Kg3 {[%clk 0:00:35]}  Ra7 {[%clk 0:00:27]} 69. Kh4 {[%clk 0:00:34]}  Re7 {[%clk 0:00:27]} 70. Ra6 {[%clk 0:00:34]}  Rc7 {[%clk 0:00:27]} 71. Kg3 {[%clk 0:00:34]}  Rb7 {[%clk 0:00:27]} 72. Ra5 {[%clk 0:00:34]}  Rc7 {[%clk 0:00:27]} 73. Kf4 {[%clk 0:00:35]}  Rc4+ {[%clk 0:00:27]} 74. Kf5 {[%clk 0:00:35]}  Rc7 {[%clk 0:00:28]} 75. Rb5 {[%clk 0:00:35]}  Ra7 {[%clk 0:00:28]} 76. g5 {[%clk 0:00:35]}  fxg5 {[%clk 0:00:28]} 77. Kxg5 {[%clk 0:00:36]}  Rc7 {[%clk 0:00:28]} 78. Rf5+ {[%clk 0:00:36]}  Kg8 {[%clk 0:00:28]} 79. Re5 {[%clk 0:00:36]}  Kh7 {[%clk 0:00:28]} 80. Rf5 {[%clk 0:00:36]}  Rb7 {[%clk 0:00:28]} 81. Rd5 {[%clk 0:00:36]}  Rb1 {[%clk 0:00:28]} 82. Rd4 {[%clk 0:00:36]}  Rg1+ {[%clk 0:00:29]} 83. Rg4 {[%clk 0:00:36]}  Rxg4+ {[%clk 0:00:28]} 84. Kxg4 {[%clk 0:00:37]}  Kh6 {[%clk 0:00:29]} 85. Kh4 {[%clk 0:00:37]}  g6 {[%clk 0:00:29]} 86. hxg6 {[%clk 0:00:38]}  Kxg6 {[%clk 0:00:30]} 1/2-1/2


[Site "https://www.chess.com"]